bitfinex/quotes_ETHUSD_20250517
["timestamp","ask_amount","ask_price","bid_price","bid_amount"]
[1747465250247,14.09284109,2492.0,2491.9,24.775]
[1747465250853,10.08,2492.0,2491.9,24.775]
[1747465251057,10.08,2492.0,2491.9,28.78800212]
[1747465251619,10.08,2492.1,2492.0,4.01284109]
[1747465251927,10.08,2492.5,2492.4,4.01219707]
[1747465252149,10.08,2492.8,2492.5,0.8186]
[1747465252355,1.59547343,2492.7,2492.5,0.8186]
[1747465253227,10.08,2492.8,2492.6,4.01177842]
[1747465253422,11.67547343,2492.9,2492.6,4.01187515]
[1747465253639,11.67547343,2492.9,2492.7,4.01170106]
[1747465254729,11.67547343,2492.9,2492.7,4.01170191]
[1747465255150,11.67547343,2492.9,2492.8,17.326]
[1747465255458,10.08,2492.9,2492.8,17.326]
[1747465256275,10.08,2492.9,2492.8,19.09919103]
[1747465257681,13.97611499,2493.1,2492.8,19.09919103]
[1747465257868,13.97611499,2493.1,2492.9,7.451]
[1747465258480,17.98723213,2493.1,2492.9,7.451]
[1747465258673,4.01123144,2493.0,2492.9,7.451]
[1747465259672,17.98726023,2493.1,2492.9,7.451]
[1747465260895,4.01123144,2493.0,2492.9,7.451]
[1747465261393,17.98731661,2493.1,2492.9,7.451]
[1747465262792,17.98731661,2493.1,2492.8,17.326]
[1747465262999,5.60686578,2492.9,2492.8,17.326]
[1747465263295,1.59547343,2492.9,2492.8,24.777]
[1747465263758,1.59547343,2492.9,2492.8,27.81883297]
[1747465266394,12.38064156,2493.1,2492.9,4.83479235]
[1747465269103,12.38064156,2493.1,2493.0,4.01123144]
[1747465270504,12.38064156,2493.1,2492.9,12.28371238]
[1747465270905,12.38064156,2493.1,2492.9,8.2724]
[1747465271075,12.38064156,2493.1,2493.0,2.09330238]
[1747465272387,13.97611499,2493.1,2493.0,7.45]
[1747465273012,13.97611499,2493.1,2492.8,17.326]
[1747465273309,14.0910902,2493.1,2493.0,7.45]
[1747465274618,15.68656363,2493.1,2493.0,7.45]
[1747465275043,4.83419235,2492.9,2492.8,17.326]
[1747465275205,6.42966578,2492.9,2492.8,24.774]
[1747465275725,17.05966578,2492.9,2492.8,24.774]
[1747465279339,12.49827343,2492.9,2492.8,24.774]
[1747465279502,11.67547343,2492.9,2492.8,24.774]
[1747465280105,15.68686578,2492.9,2492.8,24.774]
[1747465281930,11.67547343,2492.9,2492.8,24.774]
[1747465282912,15.68686578,2492.9,2492.8,24.774]
[1747465283115,19.03297585,2492.9,2492.8,24.774]
[1747465283429,27.03297585,2492.9,2492.8,24.774]
[1747465284016,27.03297585,2492.9,2492.8,7.448]
[1747465285342,4.01251905,2492.2,2492.1,17.322]
[1747465285507,15.68799248,2492.2,2492.1,24.77]
[1747465285844,11.67547343,2492.2,2492.1,24.77]
[1747465286204,15.68799248,2492.2,2492.1,24.77]
[1747465286606,11.67547343,2492.2,2492.1,24.77]
[1747465287437,10.08,2492.2,2492.1,31.25968006]
[1747465287636,10.08,2492.2,2492.1,32.07508006]
[1747465288951,11.67547343,2492.2,2492.1,17.322]
[1747465289114,15.68799248,2492.2,2492.1,24.771]
[1747465289849,15.68799248,2492.2,2492.1,17.322]
[1747465290149,15.68799248,2492.2,2492.1,24.771]
[1747465293452,16.23799248,2492.2,2492.1,24.771]
[1747465293665,12.22547343,2492.2,2492.1,24.771]
[1747465293865,10.08,2492.2,2492.1,31.26078006]
[1747465296653,10.08,2492.5,2492.1,31.26078006]
[1747465297577,10.08,2492.6,2492.1,27.2481]
[1747465297764,11.67547343,2492.6,2492.3,4.01224955]
[1747465297936,11.67547343,2492.6,2492.4,4.0121809]
[1747465298840,11.67547343,2492.6,2492.3,7.62255631]
[1747465299988,11.67547343,2492.6,2492.4,4.01217778]
[1747465301332,11.67547343,2492.6,2492.3,7.62255765]
[1747465302379,11.67547343,2492.6,2492.4,4.0121074]
[1747465302681,10.08,2492.6,2492.5,12.9267397]
[1747465302970,10.08,2492.9,2492.7,4.01170088]
[1747465303265,11.67547343,2493.0,2492.6,4.01181942]
[1747465304242,11.67547343,2493.0,2492.7,4.01162453]
[1747465304444,11.67547343,2493.0,2492.9,4.01139235]
[1747465304671,11.67547343,2493.0,2492.8,4.41262702]
[1747465304859,10.08,2493.0,2492.9,4.79889235]
[1747465305464,1.59547343,2493.3,2493.2,4.01090967]
[1747465305781,1.59547343,2493.3,2493.2,11.45890967]
[1747465305963,12.17224844,2493.4,2493.3,0.7875]
[1747465307388,12.17224844,2493.4,2493.3,4.7982488]
[1747465307982,12.17224844,2493.4,2493.3,0.7875]
[1747465308187,12.17224844,2493.4,2493.3,4.7982488]
[1747465308683,2.09224844,2493.4,2493.3,4.7982488]
[1747465308981,2.09224844,2493.4,2493.3,8.36386902]
[1747465309989,2.09224844,2493.4,2493.3,4.35312022]
[1747465310278,2.09224844,2493.4,2493.3,11.01262022]
[1747465311844,4.0107488,2493.3,2493.1,17.323]
[1747465312044,4.0107488,2493.3,2493.2,7.447]
[1747465312277,5.60622223,2493.3,2493.2,7.447]
[1747465312975,1.59547343,2493.3,2493.2,7.447]
[1747465314151,5.60622223,2493.3,2493.2,7.447]
[1747465314348,7.60583348,2493.3,2493.2,7.447]
[1747465314662,11.67547343,2493.3,2493.2,7.447]
[1747465316585,15.68622223,2493.3,2493.2,7.447]
[1747465317579,4.01090967,2493.2,2493.1,17.323]
[1747465317783,4.01090967,2493.2,2493.1,24.77]
[1747465319372,16.23626551,2493.3,2493.1,24.77]
[1747465319698,18.55303488,2493.3,2493.1,24.77]
[1747465319901,4.01090967,2493.2,2493.1,24.77]
[1747465320114,4.79620967,2493.2,2493.1,24.77]
[1747465320601,14.87620967,2493.2,2493.1,24.77]
[1747465320911,30.87320967,2493.2,2493.1,7.447]
[1747465321076,4.01165114,2492.8,2492.4,17.32]
[1747465321276,5.60750953,2492.5,2492.4,17.32]
[1747465321471,16.47280953,2492.5,2492.4,24.767]
[1747465321696,17.02280953,2492.5,2492.4,24.767]
[1747465321898,27.87188057,2492.5,2492.4,17.32]
[1747465322101,13.34749707,2492.4,2492.3,7.447]
[1747465322271,4.01274805,2492.1,2491.8,0.47972241]
[1747465322476,4.01274805,2492.1,2491.9,7.447]
[1747465323415,1.59547343,2492.3,2491.9,11.45997523]
[1747465323572,10.08,2492.4,2492.1,0.8051]
[1747465323772,8.0,2492.6,2492.3,4.01226851]
[1747465323773,10.08,2492.6,2492.3,4.01226851]
[1747465323991,11.67547343,2492.7,2492.4,11.45910432]
[1747465324626,10.08,2492.7,2492.5,0.8051]
[1747465324825,11.67547343,2493.1,2492.6,22.15801421]
[1747465325024,1.59547343,2492.7,2492.6,17.321]
[1747465325936,5.60718763,2492.7,2492.6,17.321]
[1747465326118,5.3434361,2492.5,2492.4,7.447]
[1747465326321,25.01890953,2492.5,2492.4,7.447]
[1747465327392,26.48361338,2492.5,2492.4,7.447]
[1747465329232,29.53316456,2492.5,2492.4,7.447]
[1747465329609,37.02116456,2492.5,2492.4,7.447]
[1747465331922,29.53316456,2492.5,2492.4,7.447]
[1747465332506,37.01716456,2492.5,2492.4,7.447]
[1747465333017,29.53316456,2492.5,2492.4,7.447]
[1747465333219,37.01616456,2492.5,2492.4,7.447]
[1747465333699,22.8734361,2492.5,2492.4,7.447]
[1747465333914,10.08,2492.5,2492.4,7.447]
[1747465334956,10.08,2492.5,2492.4,7.495]
[1747465336532,14.0895263,2492.5,2492.4,7.495]
[1747465336739,22.0895263,2492.5,2492.4,7.495]
[1747465338747,29.5915263,2492.5,2492.4,7.495]
[1747465339250,22.0895263,2492.5,2492.4,7.495]
[1747465339449,29.5905263,2492.5,2492.4,7.495]
[1747465340550,1.3314,2492.3,2492.2,7.495]
[1747465340859,4.39157728,2492.3,2492.2,7.495]
[1747465341537,26.48142554,2492.3,2492.2,7.495]
[1747465349072,33.97142554,2492.3,2492.2,7.495]
[1747465349284,36.58101316,2492.3,2492.2,7.495]
[1747465352383,24.23388615,2492.3,2492.2,7.495]
[1747465352557,31.71788615,2492.3,2492.2,7.495]
[1747465353584,18.0774902,2492.3,2492.2,7.495]
[1747465353882,11.67152809,2492.3,2492.2,8.2454]
[1747465354248,1.59403789,2492.3,2492.2,8.2454]
[1747465354548,1.59403789,2492.3,2492.2,9.87247395]
[1747465355163,1.59403789,2492.3,2492.2,13.884993]
[1747465355357,1.59403789,2492.5,2492.4,0.7504]
[1747465355814,1.59403789,2492.5,2492.4,4.76259707]
[1747465357346,10.0774902,2492.7,2492.4,4.76259707]
[1747465357550,10.0774902,2492.7,2492.5,0.47625971]
[1747465358682,3.05866878,2492.8,2492.5,0.47625971]
[1747465358981,3.05866878,2492.8,2492.7,0.7513]
[1747465359184,3.05866878,2492.8,2492.7,8.2463]
[1747465359886,10.0774902,2493.1,2492.7,12.25786801]
[1747465360051,3.05866878,2493.2,2493.0,0.7513]
[1747465360761,2.09224844,2493.4,2493.2,4.01076827]
[1747465360961,2.09224844,2493.4,2493.3,8.2463]
[1747465362156,6.10283639,2493.4,2493.3,7.495]
[1747465362357,6.10283639,2493.4,2493.3,7.494]
[1747465362984,21.60883639,2493.4,2493.3,7.494]
[1747465363176,25.6845634,2493.4,2493.3,7.494]
[1747465363372,21.60883639,2493.4,2493.3,7.494]
[1747465363678,9.59724844,2493.4,2493.3,7.494]
[1747465363879,2.09224844,2493.4,2493.3,7.494]
[1747465367905,5.15091722,2493.4,2493.3,7.494]
[1747465368208,9.16150517,2493.4,2493.3,7.494]
[1747465369195,10.17850829,2493.4,2493.3,7.494]
[1747465369421,12.01090967,2493.2,2493.1,7.505]
[1747465369721,22.57957845,2493.2,2493.1,7.505]
[1747465370423,15.06957845,2493.2,2493.1,7.505]
[1747465370625,11.05866878,2493.2,2493.1,7.505]
[1747465370924,17.5854902,2493.3,2493.1,9.0431]
[1747465371124,10.0774902,2493.3,2493.1,8.2926]
[1747465371331,14.08828687,2493.3,2493.1,8.2926]
[1747465371898,10.0774902,2493.3,2493.1,8.2926]
[1747465372825,10.0774902,2493.3,2493.1,12.3035835]
[1747465373923,10.0774902,2493.3,2493.2,4.01090967]
[1747465374123,5.15091722,2493.4,2493.2,1.63145533]
[1747465374328,5.15091722,2493.4,2493.2,5.64224259]
[1747465377036,2.09224844,2493.4,2493.2,5.64224259]
[1747465378031,2.09224844,2493.4,2493.3,4.7886488]
[1747465380635,2.09224844,2493.4,2493.3,12.2926488]
[1747465380840,2.09224844,2493.4,2493.3,14.8408491]
[1747465383110,2.09224844,2493.4,2493.3,15.2227201]
[1747465383313,2.09224844,2493.4,2493.3,30.7657201]
[1747465385023,2.09224844,2493.4,2493.3,22.7637201]
[1747465385349,2.09224844,2493.4,2493.3,22.3818491]
[1747465386345,0.34669001,2495.0,2494.5,0.7574]
[1747465386516,4.0080321,2495.0,2494.6,7.97863661]
[1747465386716,4.0080321,2495.0,2494.6,7.502]
[1747465387328,4.77055579,2495.1,2494.6,7.502]
[1747465387329,4.00818895,2494.9,2494.6,7.502]
[1747465388247,12.00805383,2495.0,2494.6,7.502]
[1747465388550,4.00739145,2495.4,2494.7,4.00847241]
[1747465388551,4.00744775,2495.4,2494.7,4.00847241]
[1747465388731,8.3256,2495.3,2494.7,6.59334798]
[1747465388938,8.7596,2495.3,2494.7,6.59334798]
[1747465389537,12.76721133,2495.3,2494.8,4.00829462]
[1747465389937,12.76721133,2495.3,2494.7,6.59336735]
[1747465390311,4.00777372,2495.2,2494.7,6.5934165]
[1747465390529,4.00777372,2495.2,2494.7,4.00848167]
[1747465390723,4.00803119,2495.0,2494.6,7.502]
[1747465391440,4.00792355,2495.1,2494.6,7.502]
[1747465391850,0.7596,2495.3,2494.6,11.51062759]
[1747465392019,12.76725656,2495.3,2494.7,4.00840702]
[1747465392434,12.00765656,2495.3,2494.8,4.0083272]
[1747465392751,12.00765656,2495.3,2494.9,0.8332]
[1747465393252,0.8203,2495.5,2495.0,0.04007821]
[1747465393428,4.00722303,2495.5,2495.1,7.5]
[1747465394570,4.00765066,2495.3,2495.1,7.5]
[1747465394954,4.00745711,2495.4,2495.1,7.5]
[1747465395755,5.64640675,2495.5,2495.1,7.5]
[1747465395756,0.8203,2495.7,2495.1,7.5]
[1747465395952,4.00713819,2495.6,2495.1,11.50776637]
[1747465396356,4.00713819,2495.6,2495.1,7.5]
[1747465396552,12.82719622,2495.7,2495.1,7.5]
[1747465396553,4.00722635,2495.5,2495.1,7.5]
[1747465396881,4.00746238,2495.4,2495.1,7.5]
[1747465397176,4.00753416,2495.3,2495.2,7.55]
[1747465397578,4.00753416,2495.3,2495.2,7.549]
[1747465398075,12.00753416,2495.3,2495.2,7.549]
[1747465398286,4.00791326,2495.1,2494.7,0.8242]
[1747465398578,4.00791326,2495.1,2494.5,21.32481617]
[1747465398579,4.00831271,2494.9,2494.8,7.549]
[1747465399800,4.00809494,2495.0,2494.8,7.549]
[1747465399978,0.7645,2495.1,2494.8,7.549]
[1747465400588,0.7645,2495.4,2494.8,7.549]
[1747465400773,4.00772771,2495.2,2494.8,9.1281]
[1747465401086,12.0076051,2495.3,2494.8,9.1281]
[1747465401487,4.00793414,2495.1,2494.8,7.549]
[1747465401883,4.00806423,2495.0,2494.8,7.549]
[1747465402780,4.00794058,2495.1,2494.8,7.549]
[1747465403090,12.00760337,2495.3,2494.8,7.549]
[1747465403399,8.7645,2495.4,2495.0,0.8119]
[1747465403568,8.0,2495.4,2495.0,0.8119]
[1747465403772,4.00754686,2495.3,2495.0,0.8119]
[1747465403967,4.0079667,2495.1,2494.7,0.8119]
[1747465404171,4.008014,2495.1,2494.8,7.549]
[1747465404493,4.00810046,2495.0,2494.8,7.549]
[1747465404991,4.00793844,2495.1,2494.8,7.549]
[1747465405198,4.00805494,2495.0,2494.8,7.549]
[1747465405491,0.8027,2495.2,2494.8,7.549]
[1747465405870,4.00787964,2495.1,2494.8,7.549]
[1747465406391,4.00787964,2495.1,2494.9,0.8119]
[1747465406689,4.00755449,2495.3,2494.9,0.8119]
[1747465406891,4.00773338,2495.2,2494.9,0.8119]
[1747465407191,4.0076126,2495.3,2494.9,0.8119]
[1747465407494,4.5572869,2495.5,2494.9,4.82004193]
[1747465407790,4.5572869,2495.5,2495.0,1.31239419]
[1747465408159,4.00738346,2495.4,2495.0,1.31239419]
[1747465408458,4.00726035,2495.5,2495.0,1.31239419]
[1747465408960,12.00726035,2495.5,2495.0,1.31239419]
[1747465409497,12.00726969,2495.5,2495.0,1.31239419]
[1747465409801,8.0,2495.5,2495.0,5.32039881]
[1747465410009,4.80982944,2495.6,2495.1,0.61324361]
[1747465410328,4.00712944,2495.6,2495.1,0.61324361]
[1747465410481,4.00721623,2495.5,2495.1,0.61324361]
[1747465412404,4.00712085,2495.6,2495.1,0.61324361]
[1747465412712,12.00712085,2495.6,2495.2,0.59336496]
[1747465412912,4.00693223,2495.7,2495.3,8.3327]
[1747465413109,1.3378,2495.8,2495.3,8.3327]
[1747465413110,14.08458163,2495.6,2495.4,17.307]
[1747465414720,10.0774902,2495.6,2495.4,17.307]
[1747465414925,14.08457229,2495.6,2495.4,17.307]
[1747465415123,4.00721298,2495.5,2495.4,17.307]
[1747465419048,14.08461908,2495.6,2495.4,17.307]
[1747465419760,4.00721298,2495.5,2495.4,17.307]
[1747465420433,10.0774902,2495.6,2495.4,17.307]
[1747465421741,14.08454551,2495.6,2495.4,17.307]
[1747465424154,10.0774902,2495.6,2495.4,17.307]
[1747465424357,14.08454601,2495.6,2495.4,17.307]
[1747465424760,10.0774902,2495.6,2495.4,17.307]
[1747465424920,10.0774902,2495.6,2495.4,20.19326526]
[1747465426675,0.005,2496.0,2495.9,4.00657077]
[1747465426860,0.005,2496.0,2495.9,12.35677077]
[1747465427225,0.005,2496.0,2495.9,8.3502]
[1747465427656,0.005,2496.0,2495.9,0.8202]
[1747465427961,0.005,2496.0,2495.9,8.8329015]
[1747465430260,0.005,2496.0,2495.9,8.0127015]
[1747465430461,0.005,2496.0,2495.9,0.4827015]
[1747465430759,0.005,2496.0,2495.9,7.529]
[1747465431556,4.01141025,2496.0,2495.9,7.529]
[1747465432064,4.00691692,2495.7,2495.4,20.19326526]
[1747465432230,4.00691692,2495.7,2495.5,7.529]
[1747465433262,4.00677181,2495.8,2495.5,7.529]
[1747465433429,0.7821,2495.9,2495.6,2.56593101]
[1747465433934,4.78879111,2495.9,2495.6,2.56593101]
[1747465434758,4.00669111,2495.9,2495.6,2.56593101]
[1747465435059,4.00674517,2495.8,2495.6,2.56593101]
[1747465435765,4.01146951,2496.0,2495.6,2.56593101]
[1747465435766,4.00663081,2495.9,2495.6,2.56593101]
[1747465437666,14.08412101,2495.9,2495.6,2.56593101]
[1747465437885,14.08412101,2495.9,2495.5,7.529]
[1747465439070,4.00673482,2495.8,2495.5,7.529]
[1747465439291,4.00690729,2495.7,2495.5,7.529]
[1747465439478,4.00680797,2495.8,2495.5,7.529]
[1747465440191,14.08409268,2495.9,2495.5,7.529]
[1747465440489,4.00680596,2495.8,2495.4,17.307]
[1747465440700,4.00714117,2495.6,2495.5,7.529]
[1747465441258,4.00721298,2495.5,2495.4,17.307]
[1747465441571,4.00721298,2495.5,2495.4,24.836]
[1747465442656,4.00721298,2495.5,2495.4,17.307]
[1747465442657,23.97270761,2495.5,2495.4,17.307]
[1747465442888,25.33560761,2495.5,2495.4,7.529]
[1747465447503,30.19570318,2495.5,2495.4,7.529]
[1747465447815,22.63470318,2495.5,2495.4,7.529]
[1747465448320,10.0774902,2495.5,2495.4,8.308]
[1747465452007,14.08470318,2495.5,2495.4,7.529]
[1747465452193,10.0774902,2495.5,2495.4,7.529]
[1747465452618,10.0774902,2495.5,2495.4,8.3049]
[1747465452805,10.0774902,2495.5,2495.4,9.1357]
[1747465454128,10.0774902,2495.5,2495.4,1.6067]
[1747465454330,10.0774902,2495.5,2495.4,9.1357]
[1747465455295,14.08470318,2495.5,2495.4,9.1357]
[1747465455499,10.0774902,2495.5,2495.1,0.7759]
[1747465455713,14.08478162,2495.5,2495.4,7.529]
[1747465455928,10.0774902,2495.5,2495.1,0.7759]
[1747465456100,10.0774902,2495.5,2495.4,7.529]
[1747465457543,10.0774902,2495.5,2495.1,0.7759]
[1747465457716,4.00740733,2495.4,2495.2,7.556]
[1747465457922,4.00756876,2495.3,2495.1,0.7759]
[1747465458124,4.00756876,2495.3,2495.2,7.556]
[1747465458440,10.0774902,2495.5,2494.9,0.7759]
[1747465458620,4.00753416,2495.3,2495.2,7.556]
[1747465458807,4.00783015,2495.2,2494.7,18.0789]
[1747465459008,4.00783015,2495.2,2494.8,7.556]
[1747465459211,4.00787559,2495.1,2494.8,7.556]
[1747465459419,4.00770846,2495.2,2494.8,11.27585385]
[1747465461059,4.00759712,2495.3,2494.8,11.27585385]
[1747465461351,4.00778944,2495.2,2494.8,11.27585385]
[1747465461714,4.00786046,2495.1,2494.8,3.71985385]
[1747465461943,4.00786046,2495.1,2494.9,7.557]
[1747465462344,4.00774031,2495.2,2494.9,7.557]
[1747465462533,4.00767024,2495.3,2494.9,7.557]
[1747465463246,8.0,2495.4,2494.9,11.56510648]
[1747465463445,12.0075075,2495.4,2495.0,0.7759]
[1747465463645,12.0075075,2495.4,2495.0,2.01001722]
[1747465463954,10.0774902,2495.5,2495.0,2.01001722]
[1747465464157,4.0070073,2495.7,2495.2,4.00768841]
[1747465464357,4.78028496,2495.9,2495.4,0.7759]
[1747465464358,4.00657168,2495.9,2495.4,0.7759]
[1747465464558,4.00657168,2495.9,2495.5,7.557]
[1747465464726,4.00657168,2495.9,2495.6,17.305]
[1747465465058,4.00675087,2495.8,2495.6,17.305]
[1747465466054,12.0066505,2495.9,2495.6,17.305]
[1747465467369,4.00673598,2495.8,2495.6,17.305]
[1747465468354,4.00689185,2495.7,2495.6,17.305]
[1747465472972,12.79519185,2495.7,2495.6,17.305]
[1747465473173,4.00705241,2495.6,2495.5,7.557]
[1747465474373,4.00721298,2495.5,2495.4,17.304]
[1747465474698,4.00721298,2495.5,2495.4,24.86]
[1747465476692,22.08470318,2495.5,2495.4,24.86]
[1747465479289,22.63470318,2495.5,2495.4,17.304]
[1747465479493,22.63470318,2495.5,2495.4,24.86]
[1747465479694,26.13230874,2495.5,2495.4,24.86]
[1747465479993,26.90540874,2495.5,2495.4,24.86]
[1747465486319,18.0774902,2495.5,2495.4,24.86]
[1747465486521,10.0774902,2495.5,2495.4,24.86]
[1747465487722,14.08470318,2495.5,2495.4,24.86]
[1747465490415,10.0774902,2495.5,2495.4,24.86]
[1747465490618,10.0774902,2495.5,2495.4,25.6491]
[1747465491234,14.08470318,2495.5,2495.4,25.6491]
[1747465491431,10.0774902,2495.5,2495.4,25.6491]
[1747465492845,14.08470318,2495.5,2495.4,24.86]
[1747465494037,10.0774902,2495.5,2495.4,24.86]
[1747465495732,10.0774902,2495.5,2495.4,25.6706]
[1747465500354,10.0774902,2495.5,2495.4,24.86]
[1747465500654,14.08470318,2495.5,2495.4,24.86]
[1747465501553,24.57377469,2495.5,2495.4,24.86]
[1747465502927,25.38297469,2495.5,2495.4,24.86]
[1747465503247,25.38297469,2495.5,2495.4,24.83]
[1747465505357,33.5181636,2495.5,2495.4,24.83]
[1747465506541,25.2129636,2495.5,2495.4,24.83]
[1747465506746,32.7069636,2495.5,2495.4,24.83]
[1747465509457,32.7069636,2495.5,2495.4,17.304]
[1747465509654,32.7069636,2495.5,2495.4,24.831]
[1747465511775,32.7069636,2495.5,2495.4,7.527]
[1747465511946,33.4791636,2495.5,2495.4,7.527]
[1747465512871,33.4791636,2495.5,2495.4,6.99890994]
[1747465513570,32.83997469,2495.5,2495.4,6.99890994]
[1747465513972,4.55817668,2494.9,2494.8,17.306]
[1747465514180,23.09148455,2494.9,2494.8,24.833]
[1747465515185,10.0774902,2494.9,2494.8,24.833]
[1747465515643,14.08566688,2494.9,2494.8,24.833]
[1747465516879,23.42936688,2494.9,2494.8,24.833]
[1747465517252,22.63566688,2494.9,2494.8,24.833]
[1747465518657,30.12666688,2494.9,2494.8,24.833]
[1747465518858,33.58808629,2494.9,2494.8,24.833]
[1747465521290,34.06694093,2494.9,2494.8,24.833]
[1747465524094,34.06694093,2494.9,2494.8,17.306]
[1747465524394,12.55914084,2494.3,2494.2,7.488]
[1747465524603,12.55954076,2494.1,2494.0,7.488]
[1747465526271,13.37024076,2494.1,2494.0,7.488]
[1747465526664,4.01042711,2493.5,2493.4,18.122]
[1747465526874,4.0103239,2493.6,2493.4,25.611]
[1747465527280,4.01042711,2493.5,2493.4,25.611]
[1747465527972,12.01033354,2493.6,2493.4,25.611]
[1747465528206,8.55,2493.7,2493.4,25.611]
[1747465528395,4.56010631,2493.7,2493.4,25.611]
[1747465528599,4.01027245,2493.6,2493.4,25.611]
[1747465530211,4.01042711,2493.5,2493.4,25.611]
[1747465531295,12.99101738,2493.5,2493.4,24.798]
[1747465531469,23.06850758,2493.5,2493.4,17.309]
[1747465531673,4.01139235,2492.9,2492.8,7.49]
[1747465531872,7.508,2493.3,2492.8,7.49]
[1747465532095,7.508,2493.3,2492.9,0.7611]
[1747465532096,8.0,2493.0,2492.9,0.7611]
[1747465532414,12.01098762,2493.2,2492.9,0.7611]
[1747465532750,4.01110659,2493.1,2492.9,0.7611]
[1747465533084,4.01123144,2493.0,2492.9,0.7611]
[1747465533877,12.01094288,2493.2,2492.9,0.7611]
[1747465534277,0.47885464,2493.6,2492.9,2.02748645]
[1747465534482,4.01044414,2493.5,2493.3,0.7611]
[1747465534683,4.48918653,2493.6,2493.4,7.49]
[1747465534995,0.47885464,2493.6,2493.4,11.5005273]
[1747465535194,0.47885464,2493.6,2493.4,7.49]
[1747465535434,0.47885464,2493.6,2493.5,5.59663711]
[1747465535943,21.60766567,2494.3,2493.6,4.0102605]
[1747465536219,21.60766567,2494.3,2493.6,4.05035897]
[1747465536220,4.5593726,2494.2,2493.6,4.05035897]
[1747465536389,8.0,2494.1,2493.6,4.05035897]
[1747465536590,0.55,2494.2,2493.6,4.0102605]
[1747465536917,4.00948352,2494.1,2493.5,5.59656441]
[1747465537118,4.00948352,2494.1,2493.6,1.70970998]
[1747465539623,14.08697372,2494.1,2493.6,1.70970998]
[1747465539823,4.00964314,2494.0,2493.5,1.58621]
[1747465540022,4.00978387,2493.9,2493.5,0.7611]
[1747465540191,12.00969646,2494.0,2493.5,0.7611]
[1747465540723,12.00969646,2494.0,2493.5,4.77148962]
[1747465541018,8.0,2494.0,2493.5,4.77148962]
[1747465541222,4.0096332,2494.0,2493.5,4.77148962]
[1747465541387,12.0096332,2494.0,2493.5,4.77148962]
[1747465542728,4.00979323,2493.9,2493.5,0.7611]
[1747465542921,4.01010805,2493.7,2493.6,7.491]
[1747465543430,4.01010546,2493.7,2493.6,7.491]
[1747465543585,12.01010546,2493.7,2493.6,7.491]
[1747465545148,4.56002225,2493.8,2493.6,7.491]
[1747465545349,12.56002225,2493.8,2493.6,7.491]
[1747465546346,4.01010546,2493.7,2493.6,7.491]
[1747465547135,12.56003325,2493.8,2493.6,7.491]
[1747465547335,4.01010546,2493.7,2493.6,7.491]
[1747465548615,10.0774902,2493.7,2493.6,7.491]
[1747465549046,0.47885464,2494.0,2493.6,13.4075969]
[1747465549251,0.47885464,2494.0,2493.9,4.76598387]
[1747465549460,0.47885464,2494.0,2493.9,0.7562]
[1747465550562,4.48847773,2494.0,2493.9,7.491]
[1747465550972,0.47885464,2494.0,2493.9,7.491]
[1747465551159,10.0774902,2494.1,2493.9,7.491]
[1747465551866,10.0774902,2494.1,2494.0,0.7562]
[1747465552832,10.0774902,2494.1,2494.0,4.76582309]
[1747465553367,10.55634484,2494.4,2494.0,4.76582309]
[1747465553662,10.55634484,2494.4,2494.1,17.315]
[1747465554052,14.08648424,2494.4,2494.1,17.315]
[1747465554362,4.00930096,2494.3,2494.1,17.315]
[1747465554665,14.91070727,2494.4,2494.2,7.513]
[1747465554833,5.50029113,2494.3,2494.2,7.513]
[1747465555233,1.49107073,2494.3,2494.2,7.513]
[1747465555448,10.0774902,2494.4,2494.3,0.7854]
[1747465555647,10.0774902,2494.4,2494.3,4.79454084]
[1747465559665,3.64823318,2494.8,2494.6,4.00864549]
[1747465559857,3.64823318,2494.8,2494.7,7.513]
[1747465565570,3.64823318,2494.8,2494.7,12.34119801]
[1747465565771,10.0774902,2494.9,2494.8,4.00833734]
[1747465565942,0.47885464,2495.1,2495.0,4.00801603]
[1747465566143,0.47885464,2495.1,2495.0,22.17879403]
[1747465566373,0.47885464,2495.1,2495.0,22.13871603]
[1747465567561,0.55,2495.7,2495.2,4.00769477]
[1747465567765,0.55,2495.7,2495.3,7.512]
[1747465568064,4.55693158,2495.7,2495.3,7.512]
[1747465569157,0.55,2495.7,2495.3,7.512]
[1747465569353,8.0,2495.8,2495.5,4.00719582]
[1747465569681,8.0,2495.8,2495.4,4.00727912]
[1747465570188,8.0,2495.8,2495.3,13.44525143]
[1747465570487,8.0,2495.9,2495.4,4.00734312]
[1747465570644,12.00668498,2495.9,2495.3,13.44522614]
[1747465571182,4.00677587,2495.8,2495.3,13.44522614]
[1747465571349,4.00677587,2495.8,2495.4,1.34452261]
[1747465572080,0.005,2496.0,2495.7,0.7738]
[1747465572242,0.005,2496.0,2495.8,7.55006441]
[1747465572438,0.005,2496.0,2495.9,4.00657077]
[1747465572677,0.005,2496.0,2495.8,7.51]
[1747465572974,0.005,2496.0,2495.9,17.307]
[1747465575253,0.005,2496.0,2495.9,21.31357077]
[1747465576150,0.005,2496.0,2495.9,22.10387077]
[1747465579295,0.005,2496.0,2495.9,30.10387077]
[1747465579756,0.005,2496.0,2495.9,34.17891777]
[1747465579968,0.005,2496.0,2495.9,38.25464478]
[1747465580362,0.005,2496.0,2495.9,37.69736678]
[1747465580562,0.005,2496.0,2495.9,38.24736678]
[1747465580773,0.005,2496.1,2496.0,12.81071025]
[1747465580970,0.005,2496.1,2496.0,23.97978325]
[1747465581194,0.005,2496.1,2496.0,25.62410125]
[1747465581410,0.005,2496.6,2496.5,12.80990785]
[1747465581577,0.005,2496.6,2496.5,27.83790785]
[1747465581773,0.005,2496.6,2496.5,28.38790785]
[1747465581996,0.005,2496.9,2496.8,4.80942656]
[1747465582161,0.34980067,2498.0,2497.0,12.80910576]
[1747465582360,0.34980067,2498.0,2497.0,27.87910576]
[1747465582561,0.34980067,2498.0,2497.0,36.19122276]
[1747465582863,0.34980067,2498.0,2497.0,36.19022276]